[Event "Amsterdam Chess Open 2024"]
[Site "Amsterdam"]
[Date "2024.11.02"]
[Round "3.28"]
[White "Agustin Luis Martin Reyes"]
[Black "Saricicek, Bilal Eren"]
[Result "1/2-1/2"]
[ECO "A00"]
[WhiteElo "1650"]
[BlackElo "1547"]
[Annotator "NA RC"]
[PlyCount "65"]
[EventDate "2024.10.31"]
[EventType "swiss"]
[EventCountry "NED"]
[SourceTitle "playchess.com"]
[Source "ChessBase"]
[SourceQuality "1"]
[TimeControl "5400+30"]

1. g3 {[%emt 0:00:08]} d5 {[%emt 0:00:21]} 2. Bg2 {[%emt 0:00:08]} e5 {[%emt 0:00:22]} 3. e4 {[%emt 0:01:11]} d4 {[%emt 0:01:03]} 4. d3 {[%emt 0:00:34]} h6 {[%emt 0:01:08]} 5. a3 {[%emt 0:03:21]} Bd6 {[%emt 0:02:10]} 6. Nd2 {[%emt 0:00:25]} c5 {[%emt 0:02:31]} 7. Ngf3 {[%emt 0:01:37]} Nc6 {[%emt 0:00:16]} 8. O-O {[%emt 0:02:01]} Nf6 {[%emt 0:00:54]} 9. Nc4 {[%emt 0:02:20]} Bc7 {[%emt 0:00:40]} 10. a4 {[%emt 0:01:18]} O-O {[%emt 0:04:46]} 11. Bd2 {[%emt 0:02:57]} Be6 {[%emt 0:03:06]} 12. b3 {[%emt 0:03:28]} Qd7 {[%emt 0:01:59]} 13. Qc1 {[%emt 0:09:46]} Kh7 {[%emt 0:01:51]} 14. Nh4 {[%emt 0:03:42]} Ne7 {[%emt 0:03:39]} 15. f4 {[%emt 0:03:10]} exf4 {[%emt 0:11:14]} 16. gxf4 {[%emt 0:00:46]} Bxc4 {[%emt 0:00:36]} 17. bxc4 {[%emt 0:00:17]} Qg4 {[%emt 0:01:06]} 18. Nf3 {[%emt 0:00:50]} Ng6 {[%emt 0:01:15]} 19. h3 {[%emt 0:06:02]} Qg3 {[%emt 0:06:08]} 20. e5 {[%emt 0:02:55]} Nh5 {[%emt 0:00:39]} 21. Nh2 {[%emt 0:00:31]} Nh4 {[%emt 0:09:38]} 22. Rf2 {[%emt 0:01:01]} Nxg2 {[%emt 0:00:47]} 23. Rxg2 {[%emt 0:00:14]} Qxh3 {[%emt 0:02:30]} 24. Qe1 {[%emt 0:03:07]} Qf5 {[%emt 0:03:08]} 25. Qh4 {[%emt 0:00:21]} Bd8 {[%emt 0:00:40]} 26. Qg4 {[%emt 0:05:46]} Qxg4 {[%emt 0:02:42]} 27. Nxg4 {[%emt 0:00:55]} Re8 {[%emt 0:14:43]} 28. Rh2 {[%emt 0:01:51]} Ng3 {[%emt 0:00:34]} 29. Kf2 {[%emt 0:00:12]} Nf5 {[%emt 0:00:11]} 30. Rah1 {[%emt 0:01:53]} Rc8 {[%emt 0:03:58]} 31. Rh5 {[%emt 0:01:39]} g6 {[%emt 0:02:34]} 32. R5h3 {[%emt 0:03:17]} Kg7 {[%emt 0:01:07]} 33. Nxh6 {[%emt 0:01:03]} 1/2-1/2

[Event "Amsterdam Chess Open 2024"]
[Site "Amsterdam"]
[Date "2024.11.02"]
[Round "3.29"]
[White "Kevin Cox"]
[Black "Chris van Gasteren"]
[Result "0-1"]
[ECO "D02"]
[WhiteElo "1550"]
[BlackElo "1650"]
[Annotator "NA RC"]
[PlyCount "76"]
[EventDate "2024.10.31"]
[EventType "swiss"]
[EventCountry "NED"]
[SourceTitle "playchess.com"]
[Source "ChessBase"]
[SourceQuality "1"]
[TimeControl "5400+30"]

1. Nf3 {[%emt 0:00:02]} Nf6 {[%emt 0:06:09]} 2. d4 {[%emt 0:00:12]} d5 {[%emt 0:01:13]} 3. g3 {[%emt 0:00:09]} g6 {[%emt 0:02:10]} 4. Bg2 {[%emt 0:00:10]} Bg7 {[%emt 0:00:37]} 5. O-O {[%emt 0:00:11]} Bf5 {[%emt 0:02:13]} 6. c3 {[%emt 0:00:15]} Nbd7 {[%emt 0:01:31]} 7. Qb3 {[%emt 0:00:18]} b6 {[%emt 0:01:46]} 8. Qa4 {[%emt 0:00:26]} O-O {[%emt 0:01:52]} 9. Nbd2 {[%emt 0:01:08]} Re8 {[%emt 0:03:08]} 10. Re1 {[%emt 0:00:26]} e5 {[%emt 0:00:47]} 11. dxe5 {[%emt 0:00:19]} Nxe5 {[%emt 0:00:27]} 12. Nxe5 {[%emt 0:00:20]} Rxe5 {[%emt 0:00:08]} 13. e3 {[%emt 0:00:47]} c5 {[%emt 0:01:49]} 14. Nf3 {[%emt 0:00:59]} Re8 {[%emt 0:01:57]} 15. Nh4 {[%emt 0:03:04]} Be4 {[%emt 0:01:05]} 16. Rd1 {[%emt 0:03:00]} Bxg2 {[%emt 0:03:14]} 17. Nxg2 {[%emt 0:00:08]} Qc7 {[%emt 0:03:01]} 18. Nf4 {[%emt 0:00:43]} Rad8 {[%emt 0:00:41]} 19. Qb3 {[%emt 0:01:36]} Qc6 {[%emt 0:02:40]} 20. a4 {[%emt 0:01:07]} Rd7 {[%emt 0:04:54]} 21. Qc2 {[%emt 0:02:42]} Ne4 {[%emt 0:03:27]} 22. h4 {[%emt 0:03:23]} h6 {[%emt 0:03:28]} 23. Qe2 {[%emt 0:00:59]} Bxc3 {[%emt 0:01:38]} 24. Qg4 {[%emt 0:02:28]} Bg7 {[%emt 0:02:29]} 25. a5 {[%emt 0:03:11]} d4 {[%emt 0:02:24]} 26. axb6 {[%emt 0:00:56]} axb6 {[%emt 0:02:56]} 27. Ra3 {[%emt 0:02:28]} Red8 {[%emt 0:01:55]} 28. Rad3 {[%emt 0:03:20]} c4 {[%emt 0:02:09]} 29. Ra3 {[%emt 0:01:06]} Nxf2 {[%emt 0:01:06]} 30. Kxf2 {[%emt 0:02:18]} dxe3+ {[%emt 0:00:10]} 31. Bxe3 {[%emt 0:03:18]} Rxd1 {[%emt 0:00:15]} 32. Ra6 {[%emt 0:05:43]} Qh1 {[%emt 0:01:20]} 33. Qe2 {[%emt 0:00:56]} Qg1+ {[%emt 0:09:11]} 34. Kf3 {[%emt 0:00:51]} Rf1+ {[%emt 0:05:25]} 35. Kg4 {[%emt 0:05:34]} f5+ {[%emt 0:00:41]} 36. Kh3 {[%emt 0:01:17]} Qh1+ {[%emt 0:00:07]} 37. Qh2 {[%emt 0:00:47]} Qf3 {[%emt 0:00:06]} 38. Ng2 {[%emt 0:02:12]} Qg4# {[%emt 0:00:09]} 0-1

[Event "Amsterdam Chess Open 2024"]
[Site "Amsterdam"]
[Date "2024.11.02"]
[Round "3.30"]
[White "Hubert Humerczyk"]
[Black "Witte, Phoebe"]
[Result "1-0"]
[ECO "D00"]
[WhiteElo "1400"]
[BlackElo "1619"]
[Annotator "NA RC"]
[PlyCount "75"]
[EventDate "2024.10.31"]
[EventType "swiss"]
[EventCountry "NED"]
[SourceTitle "playchess.com"]
[Source "ChessBase"]
[SourceQuality "1"]
[TimeControl "5400+30"]

1. d4 {[%emt 0:00:59]} d5 {[%emt 0:00:09]} 2. Bf4 {[%emt 0:00:30]} Nf6 {[%emt 0:00:21]} 3. e3 {[%emt 0:00:10]} c5 {[%emt 0:00:27]} 4. c3 {[%emt 0:00:18]} Nc6 {[%emt 0:00:26]} 5. Bd3 {[%emt 0:00:15]} Qb6 {[%emt 0:00:43]} 6. Qc1 {[%emt 0:01:41]} Nh5 {[%emt 0:02:50]} 7. Bg3 {[%emt 0:00:25]} Nxg3 {[%emt 0:05:52]} 8. hxg3 {[%emt 0:00:13]} e5 {[%emt 0:02:06]} 9. Ne2 {[%emt 0:04:13]} e4 {[%emt 0:03:26]} 10. Bc2 {[%emt 0:00:03]} Bg4 {[%emt 0:06:04]} 11. Nf4 {[%emt 0:00:03]} Rd8 {[%emt 0:04:27]} 12. Nd2 {[%emt 0:02:23]} Be6 {[%emt 0:08:13]} 13. Nxe6 {[%emt 0:03:58]} fxe6 {[%emt 0:01:01]} 14. f3 {[%emt 0:04:42]} Bd6 {[%emt 0:03:50]} 15. O-O {[%emt 0:04:45]} O-O {[%emt 0:02:30]} 16. Rb1 {[%emt 0:02:48]} Bxg3 {[%emt 0:02:38]} 17. fxe4 {[%emt 0:00:13]} cxd4 {[%emt 0:03:31]} 18. exd4 {[%emt 0:03:53]} Ne7 {[%emt 0:01:56]} 19. Nf3 {[%emt 0:02:38]} e5 {[%emt 0:07:10]} 20. exd5 {[%emt 0:01:47]} exd4 {[%emt 0:02:50]} 21. Kh1 {[%emt 0:01:12]} Bf4 {[%emt 0:01:37]} 22. Qe1 {[%emt 0:01:06]} Qh6+ {[%emt 0:02:06]} 23. Kg1 {[%emt 0:00:40]} Be3+ {[%emt 0:00:33]} 24. Rf2 {[%emt 0:00:28]} Bxf2+ {[%emt 0:01:28]} 25. Qxf2 {[%emt 0:00:09]} Qe3 {[%emt 0:01:00]} 26. Qxe3 {[%emt 0:01:01]} dxe3 {[%emt 0:00:13]} 27. c4 {[%emt 0:01:24]} Nf5 {[%emt 0:03:02]} 28. b4 {[%emt 0:06:30]} Nd6 {[%emt 0:04:33]} 29. c5 {[%emt 0:01:07]} Nb5 {[%emt 0:00:13]} 30. Bb3 {[%emt 0:00:43]} Nc3 {[%emt 0:02:23]} 31. d6+ {[%emt 0:00:15]} Kh8 {[%emt 0:00:07]} 32. Re1 {[%emt 0:01:44]} Rfe8 {[%emt 0:01:14]} 33. Ng5 {[%emt 0:01:01]} g6 {[%emt 0:07:58]} 34. Nf7+ {[%emt 0:00:24]} Kg7 {[%emt 0:00:09]} 35. Nxd8 {[%emt 0:00:15]} Rxd8 {[%emt 0:00:03]} 36. Rxe3 {[%emt 0:00:15]} Nb5 {[%emt 0:00:43]} 37. Re7+ {[%emt 0:00:21]} Kf6 {[%emt 0:01:08]} 38. Rxb7 {[%emt 0:00:25]} 1-0